[Event "NJSK 2022 Jeugd C"]
[Site "Almelo, Netherlands"]
[Date "2022.05.01"]
[Round "1.1"]
[White "De Winter, Arthur"]
[Black "Van Batenburg, Mees"]
[Result "1/2-1/2"]
[TimeControl "90min + 30sec/move"]
[WhiteElo "2138"]
[BlackElo "1713"]

1. e4 {[%clk 01:30:56]} {[%emt 00:00:02]} c5 {[%clk 01:30:47]} {[%emt
00:00:14]} 2. Nf3 {[%clk 01:31:22]} {[%emt 00:00:04]} Nc6 {[%clk 01:30:57]}
{[%emt 00:00:20]} 3. d4 {[%clk 01:31:44]} {[%emt 00:00:08]} cxd4 {[%clk
01:31:12]} {[%emt 00:00:15]} 4. Nxd4 {[%clk 01:32:10]} {[%emt 00:00:03]} e5
{[%clk 01:31:28]} {[%emt 00:00:14]} 5. Nb5 {[%clk 01:32:35]} {[%emt 00:00:06]}
d6 {[%clk 01:31:50]} {[%emt 00:00:09]} 6. N1c3 {[%clk 01:32:58]} {[%emt
00:00:06]} a6 {[%clk 01:32:08]} {[%emt 00:00:12]} 7. Na3 {[%clk 01:33:24]}
{[%emt 00:00:04]} Be6 {[%clk 01:32:23]} {[%emt 00:00:15]} 8. Nc4 {[%clk
01:33:11]} {[%emt 00:00:43]} Rb8 {[%clk 01:32:37]} {[%emt 00:00:15]} 9. g3
{[%clk 01:32:24]} {[%emt 00:01:18]} h5 {[%clk 01:28:23]} {[%emt 00:04:43]} 10.
h3 {[%clk 01:31:59]} {[%emt 00:00:56]} Nd4 {[%clk 01:28:32]} {[%emt 00:00:21]}
11. Ne3 {[%clk 01:31:20]} {[%emt 00:01:10]} Nf6 {[%clk 01:28:41]} {[%emt
00:00:20]} 12. Bg2 {[%clk 01:31:05]} {[%emt 00:00:44]} Qc8 {[%clk 01:28:18]}
{[%emt 00:00:54]} 13. f4 {[%clk 01:23:54]} {[%emt 00:07:42]} b5 {[%clk
01:28:23]} {[%emt 00:00:25]} 14. f5 {[%clk 01:17:14]} {[%emt 00:07:09]} Bd7
{[%clk 01:28:28]} {[%emt 00:00:25]} 15. O-O {[%clk 01:07:32]} {[%emt 00:10:12]}
b4 {[%clk 01:28:45]} {[%emt 00:00:13]} 16. Ncd5 {[%clk 01:06:25]} {[%emt
00:01:38]} Nxd5 {[%clk 01:28:08]} {[%emt 00:01:06]} 17. Nxd5 {[%clk 01:06:50]}
{[%emt 00:00:04]} Qxc2 {[%clk 01:28:30]} {[%emt 00:00:08]} 18. Bg5 {[%clk
01:05:02]} {[%emt 00:02:19]} Bc6 {[%clk 01:08:12]} {[%emt 00:20:48]} 19. Qxc2
{[%clk 00:47:16]} {[%emt 00:18:15]} Nxc2 {[%clk 01:08:17]} {[%emt 00:00:25]} 20.
Rac1 {[%clk 00:47:42]} {[%emt 00:00:05]} Nd4 {[%clk 01:07:27]} {[%emt
00:01:20]} 21. Rxc6 {[%clk 00:44:58]} {[%emt 00:03:14]} Nxc6 {[%clk 01:07:17]}
{[%emt 00:00:41]} 22. Rc1 {[%clk 00:45:22]} {[%emt 00:00:05]} Ne7 {[%clk
00:43:55]} {[%emt 00:23:52]} 23. Nc7+ {[%clk 00:43:11]} {[%emt 00:02:41]} Kd7
{[%clk 00:43:36]} {[%emt 00:00:50]} 24. Nxa6 {[%clk 00:42:44]} {[%emt
00:18:37]} Rc8 {[%clk 00:41:32]} {[%emt 00:02:35]} 25. Rxc8 {[%clk 00:34:54]}
{[%emt 00:08:19]} Nxc8 {[%clk 00:41:33]} {[%emt 00:00:29]} 26. Nxb4 {[%clk
00:35:12]} {[%emt 00:00:11]} Be7 {[%clk 00:40:31]} {[%emt 00:01:32]} 27. Be3
{[%clk 00:34:03]} {[%emt 00:01:39]} Bd8 {[%clk 00:40:25]} {[%emt 00:00:36]} 28.
Kf1 {[%clk 00:29:30]} {[%emt 00:05:03]} Bb6 {[%clk 00:39:20]} {[%emt 00:01:35]}
29. Bd2 {[%clk 00:26:40]} {[%emt 00:03:20]} Ba5 {[%clk 00:38:44]} {[%emt
00:01:07]} 30. Bf3 {[%clk 00:26:32]} {[%emt 00:00:38]} Na7 {[%clk 00:37:13]}
{[%emt 00:02:01]} 31. Ke2 {[%clk 00:25:23]} {[%emt 00:01:38]} Nc6 {[%clk
00:35:50]} {[%emt 00:01:53]} 32. Nxc6 {[%clk 00:25:45]} {[%emt 00:00:08]} Bxd2
{[%clk 00:36:18]} {[%emt 00:00:02]} 33. Nxe5+ {[%clk 00:26:06]} {[%emt
00:00:09]} dxe5 {[%clk 00:36:42]} {[%emt 00:00:06]} 34. Kxd2 {[%clk 00:26:34]}
{[%emt 00:00:03]} g6 {[%clk 00:36:25]} {[%emt 00:00:47]} 35. fxg6 {[%clk
00:26:14]} {[%emt 00:00:49]} fxg6 {[%clk 00:36:49]} {[%emt 00:00:06]} 36. Be2
{[%clk 00:25:07]} {[%emt 00:01:37]} Kd6 {[%clk 00:36:12]} {[%emt 00:01:08]} 37.
b4 {[%clk 00:23:56]} {[%emt 00:01:40]} Ra8 {[%clk 00:35:44]} {[%emt 00:00:58]}
38. Bc4 {[%clk 00:21:49]} {[%emt 00:02:38]} g5 {[%clk 00:34:18]} {[%emt
00:01:56]} 39. Bb3 {[%clk 00:19:49]} {[%emt 00:02:30]} Rf8 {[%clk 00:32:25]}
{[%emt 00:02:23]} 40. Ke3 {[%clk 00:16:42]} {[%emt 00:03:37]} Rf1 {[%clk
00:31:07]} {[%emt 00:01:48]} 41. Ke2 {[%clk 00:15:38]} {[%emt 00:01:34]} Rb1
{[%clk 00:29:29]} {[%emt 00:02:07]} 42. Kf2 {[%clk 00:14:45]} {[%emt 00:01:24]}
Kc6 {[%clk 00:28:33]} {[%emt 00:01:25]} 43. Bf7 {[%clk 00:15:04]} {[%emt
00:00:11]} h4 {[%clk 00:28:41]} {[%emt 00:00:23]} 44. gxh4 {[%clk 00:14:54]}
{[%emt 00:00:39]} gxh4 {[%clk 00:29:06]} {[%emt 00:00:05]} 45. a3 {[%clk
00:12:51]} {[%emt 00:02:33]} Ra1 {[%clk 00:27:23]} {[%emt 00:02:12]} 46. a4
{[%clk 00:11:13]} {[%emt 00:02:10]} Ra3 {[%clk 00:27:23]} {[%emt 00:00:30]} 47.
Kg2 {[%clk 00:07:42]} {[%emt 00:04:00]} Kd6 {[%clk 00:27:00]} {[%emt 00:00:53]}
48. a5 {[%clk 00:07:08]} {[%emt 00:01:04]} Ra4 {[%clk 00:26:56]} {[%emt
00:00:34]} 49. Kf3 {[%clk 00:07:04]} {[%emt 00:00:34]} Rxb4 {[%clk 00:26:46]}
{[%emt 00:00:41]} 50. Bd5 {[%clk 00:06:58]} {[%emt 00:00:35]} Ra4 {[%clk
00:21:11]} {[%emt 00:06:06]} 51. Kg4 {[%clk 00:07:23]} {[%emt 00:00:04]} Rxa5
{[%clk 00:21:32]} {[%emt 00:00:11]} 52. Kxh4 {[%clk 00:07:48]} {[%emt
00:00:03]} Ra7 {[%clk 00:21:08]} {[%emt 00:00:55]} 53. Kg5 {[%clk 00:06:24]}
{[%emt 00:01:54]} Rg7+ {[%clk 00:20:41]} {[%emt 00:00:56]} 54. Kf5 {[%clk
00:05:31]} {[%emt 00:01:22]} Rh7 {[%clk 00:19:56]} {[%emt 00:01:16]} 1/2-1/2

[Event "NJSK 2022 Jeugd C"]
[Site "Almelo, Netherlands"]
[Date "2022.05.01"]
[Round "1.2"]
[White "Kazarjan, Gachatur"]
[Black "Kumar, Prajit Sai"]
[Result "1-0"]
[TimeControl "90min + 30sec/move"]
[WhiteElo "1661"]
[BlackElo "2042"]

1. e4 {[%clk 01:30:58]} {[%emt 00:00:02]} c6 {[%clk 01:30:57]} {[%emt
00:00:03]} 2. d4 {[%clk 01:31:21]} {[%emt 00:00:07]} d5 {[%clk 01:31:25]}
{[%emt 00:00:02]} 3. Nd2 {[%clk 01:31:46]} {[%emt 00:00:06]} dxe4 {[%clk
01:31:49]} {[%emt 00:00:05]} 4. Nxe4 {[%clk 01:32:03]} {[%emt 00:00:14]} Nf6
{[%clk 01:32:15]} {[%emt 00:00:04]} 5. Nxf6+ {[%clk 01:32:23]} {[%emt
00:00:10]} exf6 {[%clk 01:32:40]} {[%emt 00:00:05]} 6. Nf3 {[%clk 01:32:41]}
{[%emt 00:00:12]} Bd6 {[%clk 01:33:01]} {[%emt 00:00:08]} 7. Bd3 {[%clk
01:32:21]} {[%emt 00:00:51]} O-O {[%clk 01:33:23]} {[%emt 00:00:08]} 8. O-O
{[%clk 01:32:43]} {[%emt 00:00:08]} Bg4 {[%clk 01:33:47]} {[%emt 00:00:06]} 9.
Re1 {[%clk 01:32:10]} {[%emt 00:01:02]} Nd7 {[%clk 01:32:43]} {[%emt 00:01:34]}
10. c3 {[%clk 01:28:47]} {[%emt 00:03:53]} Re8 {[%clk 01:27:49]} {[%emt
00:05:25]} 11. Rxe8+ {[%clk 01:17:36]} {[%emt 00:11:40]} Qxe8 {[%clk 01:27:39]}
{[%emt 00:00:41]} 12. Be3 {[%clk 01:17:33]} {[%emt 00:00:33]} Nf8 {[%clk
01:27:24]} {[%emt 00:00:44]} 13. Be2 {[%clk 01:08:56]} {[%emt 00:09:07]} Qd7
{[%clk 01:21:42]} {[%emt 00:06:12]} 14. Nd2 {[%clk 01:02:20]} {[%emt 00:07:07]}
Bf5 {[%clk 01:19:57]} {[%emt 00:02:15]} 15. c4 {[%clk 01:01:12]} {[%emt
00:01:37]} Bc7 {[%clk 01:15:00]} {[%emt 00:05:26]} 16. Bf3 {[%clk 00:58:07]}
{[%emt 00:03:36]} Ng6 {[%clk 00:56:40]} {[%emt 00:18:50]} 17. g3 {[%clk
00:56:13]} {[%emt 00:02:25]} Ne7 {[%clk 00:53:44]} {[%emt 00:03:25]} 18. Nb3
{[%clk 00:54:54]} {[%emt 00:01:49]} b6 {[%clk 00:52:37]} {[%emt 00:01:37]} 19.
Qe2 {[%clk 00:52:24]} {[%emt 00:03:00]} Rd8 {[%clk 00:49:38]} {[%emt 00:03:28]}
20. Rd1 {[%clk 00:50:27]} {[%emt 00:02:28]} Bd6 {[%clk 00:46:45]} {[%emt
00:03:23]} 21. Nc1 {[%clk 00:40:55]} {[%emt 00:10:02]} g5 {[%clk 00:38:28]}
{[%emt 00:26:18]} 22. a3 {[%clk 00:38:53]} {[%emt 00:02:33]} h6 {[%clk
00:35:04]} {[%emt 00:03:53]} 23. b4 {[%clk 00:37:04]} {[%emt 00:02:20]} Bg6
{[%clk 00:31:37]} {[%emt 00:03:56]} 24. Na2 {[%clk 00:36:21]} {[%emt 00:01:13]}
f5 {[%clk 00:31:09]} {[%emt 00:00:58]} 25. Nc3 {[%clk 00:36:37]} {[%emt
00:00:14]} f4 {[%clk 00:29:30]} {[%emt 00:02:09]} 26. Bc1 {[%clk 00:36:45]}
{[%emt 00:00:23]} fxg3 {[%clk 00:25:03]} {[%emt 00:04:57]} 27. fxg3 {[%clk
00:36:22]} {[%emt 00:00:53]} Re8 {[%clk 00:20:23]} {[%emt 00:05:10]} 28. Qg2
{[%clk 00:35:46]} {[%emt 00:01:06]} c5 {[%clk 00:19:16]} {[%emt 00:01:37]} 29.
dxc5 {[%clk 00:35:15]} {[%emt 00:01:01]} bxc5 {[%clk 00:19:42]} {[%emt
00:00:04]} 30. Nb5 {[%clk 00:35:08]} {[%emt 00:00:38]} g4 {[%clk 00:19:54]}
{[%emt 00:00:17]} 31. Rxd6 {[%clk 00:34:43]} {[%emt 00:00:55]} Qf5 {[%clk
00:20:10]} {[%emt 00:00:14]} 32. Be2 {[%clk 00:30:48]} {[%emt 00:04:26]} Qc2
{[%clk 00:20:07]} {[%emt 00:00:32]} 33. Qf1 {[%clk 00:29:56]} {[%emt 00:01:22]}
cxb4 {[%clk 00:19:39]} {[%emt 00:00:58]} 34. axb4 {[%clk 00:29:53]} {[%emt
00:00:33]} Nf5 {[%clk 00:20:03]} {[%emt 00:00:06]} 35. Bd3 {[%clk 00:29:55]}
{[%emt 00:00:28]} Qb3 {[%clk 00:20:08]} {[%emt 00:00:25]} 36. Bxf5 {[%clk
00:27:31]} {[%emt 00:02:55]} Qxb4 {[%clk 00:20:32]} {[%emt 00:00:05]} 37. Ba3
{[%clk 00:26:37]} {[%emt 00:01:24]} Qa5 {[%clk 00:20:32]} {[%emt 00:00:30]} 38.
Rxg6+ {[%clk 00:25:43]} {[%emt 00:01:23]} fxg6 {[%clk 00:20:55]} {[%emt
00:00:07]} 39. Be6+ {[%clk 00:26:05]} {[%emt 00:00:08]} 1-0

[Event "NJSK 2022 Jeugd C"]
[Site "Almelo, Netherlands"]
[Date "2022.05.01"]
[Round "1.3"]
[White "Smeets, Kobe"]
[Black "Venema, Maxime"]
[Result "1-0"]
[TimeControl "90min + 30sec/move"]
[WhiteElo "1984"]
[BlackElo "1614"]

1. e4 {[%clk 01:30:57]} {[%emt 00:00:02]} c5 {[%clk 01:30:56]} {[%emt
00:00:05]} 2. Nf3 {[%clk 01:31:22]} {[%emt 00:00:05]} d6 {[%clk 01:31:20]}
{[%emt 00:00:06]} 3. d4 {[%clk 01:31:46]} {[%emt 00:00:06]} cxd4 {[%clk
01:31:44]} {[%emt 00:00:06]} 4. Nxd4 {[%clk 01:32:12]} {[%emt 00:00:04]} Nf6
{[%clk 01:32:06]} {[%emt 00:00:07]} 5. Nc3 {[%clk 01:32:36]} {[%emt 00:00:07]}
a6 {[%clk 01:32:30]} {[%emt 00:00:06]} 6. h3 {[%clk 01:33:00]} {[%emt
00:00:05]} e5 {[%clk 01:32:51]} {[%emt 00:00:09]} 7. Nde2 {[%clk 01:33:22]}
{[%emt 00:00:08]} Be6 {[%clk 01:33:00]} {[%emt 00:00:21]} 8. g4 {[%clk
01:33:14]} {[%emt 00:00:39]} h6 {[%clk 01:33:01]} {[%emt 00:00:28]} 9. Bg2
{[%clk 01:33:28]} {[%emt 00:00:16]} Be7 {[%clk 01:33:13]} {[%emt 00:00:18]} 10.
Be3 {[%clk 01:33:07]} {[%emt 00:00:50]} Nbd7 {[%clk 01:32:49]} {[%emt
00:00:55]} 11. Nd5 {[%clk 01:28:57]} {[%emt 00:04:40]} Rc8 {[%clk 01:29:10]}
{[%emt 00:04:09]} 12. O-O {[%clk 01:28:16]} {[%emt 00:01:10]} Nc5 {[%clk
01:25:30]} {[%emt 00:04:11]} 13. Ng3 {[%clk 01:27:27]} {[%emt 00:01:19]} Nxd5
{[%clk 01:21:29]} {[%emt 00:04:31]} 14. exd5 {[%clk 01:27:35]} {[%emt
00:00:22]} Bd7 {[%clk 01:21:48]} {[%emt 00:00:11]} 15. Qd2 {[%clk 01:15:42]}
{[%emt 00:12:22]} Qc7 {[%clk 01:17:55]} {[%emt 00:04:24]} 16. c4 {[%clk
01:00:07]} {[%emt 00:16:04]} Bf6 {[%clk 01:11:24]} {[%emt 00:07:02]} 17. Nh5
{[%clk 00:57:18]} {[%emt 00:03:19]} Qd8 {[%clk 01:09:44]} {[%emt 00:02:10]} 18.
Rae1 {[%clk 00:56:07]} {[%emt 00:01:40]} b5 {[%emt 00:02:31]} 19. f4 {[%clk
00:55:14]} O-O {[%clk 00:55:32]} {[%emt 00:14:06]} 20. Nxf6+ {[%clk 00:54:30]}
{[%emt 00:01:13]} Qxf6 {[%clk 00:55:04]} {[%emt 00:00:57]} 21. fxe5 {[%clk
00:54:42]} {[%emt 00:00:18]} Qg6 {[%clk 00:54:05]} {[%emt 00:01:30]} 22. Bxc5
{[%clk 00:42:58]} {[%emt 00:12:13]} Rxc5 {[%clk 00:47:43]} {[%emt 00:06:52]} 23.
e6 {[%clk 00:43:03]} {[%emt 00:00:26]} fxe6 {[%clk 00:47:11]} {[%emt 00:01:02]}
24. Rxf8+ {[%clk 00:43:26]} {[%emt 00:00:07]} Kxf8 {[%clk 00:47:32]} {[%emt
00:00:09]} 25. dxe6 {[%clk 00:43:51]} {[%emt 00:00:05]} Qg5 {[%clk 00:43:54]}
{[%emt 00:21:40]} 26. Qxg5 {[%clk 00:43:37]} {[%emt 00:00:44]} hxg5 {[%clk
00:44:13]} {[%emt 00:00:11]} 27. exd7 {[%clk 00:44:02]} {[%emt 00:00:05]} 1-0

[Event "NJSK 2022 Jeugd C"]
[Site "Almelo, Netherlands"]
[Date "2022.05.01"]
[Round "1.4"]
[White "Lopes, Samuel"]
[Black "Zhu, Chenwu"]
[Result "0-1"]
[TimeControl "90min + 30sec/move"]
[WhiteElo "1600"]
[BlackElo "1968"]

1. b3 {[%clk 01:30:57]} {[%emt 00:00:03]} d5 {[%clk 01:30:31]} {[%emt
00:00:29]} 2. Bb2 {[%clk 01:31:21]} {[%emt 00:00:05]} c5 {[%clk 01:30:23]}
{[%emt 00:00:40]} 3. e3 {[%clk 01:31:25]} {[%emt 00:00:25]} Nc6 {[%clk
01:30:38]} {[%emt 00:00:16]} 4. d4 {[%clk 01:29:13]} {[%emt 00:02:41]} e6
{[%clk 01:30:38]} {[%emt 00:00:30]} 5. Nf3 {[%clk 01:28:40]} {[%emt 00:01:02]}
Nf6 {[%clk 01:30:52]} {[%emt 00:00:17]} 6. Be2 {[%clk 01:26:59]} {[%emt
00:02:11]} Bd6 {[%clk 01:30:57]} {[%emt 00:00:25]} 7. O-O {[%clk 01:25:55]}
{[%emt 00:01:34]} O-O {[%clk 01:31:08]} {[%emt 00:00:19]} 8. c4 {[%clk
01:24:37]} {[%emt 00:01:49]} b6 {[%clk 01:30:21]} {[%emt 00:01:17]} 9. Nc3
{[%clk 01:23:29]} {[%emt 00:01:37]} Bb7 {[%clk 01:29:48]} {[%emt 00:01:03]} 10.
a3 {[%clk 01:21:37]} {[%emt 00:02:22]} Qe7 {[%clk 01:28:04]} {[%emt 00:02:14]}
11. Nb5 {[%clk 01:13:00]} {[%emt 00:09:07]} Ne4 {[%clk 01:25:38]} {[%emt
00:02:56]} 12. cxd5 {[%clk 01:01:56]} {[%emt 00:11:35]} exd5 {[%clk 01:24:38]}
{[%emt 00:01:30]} 13. dxc5 {[%clk 00:59:17]} {[%emt 00:03:09]} Bxc5 {[%clk
01:22:37]} {[%emt 00:02:31]} 14. Qxd5 {[%clk 00:49:48]} {[%emt 00:09:58]} Nxf2
{[%clk 01:21:38]} {[%emt 00:01:29]} 15. Qg5 {[%clk 00:27:56]} {[%emt 00:22:22]}
f6 {[%clk 01:19:26]} {[%emt 00:02:42]} 16. Bc4+ {[%clk 00:21:04]} {[%emt
00:07:22]} Kh8 {[%clk 01:18:56]} {[%emt 00:01:01]} 17. Qh4 {[%clk 00:19:29]}
{[%emt 00:02:03]} Nd3 {[%clk 01:10:24]} {[%emt 00:09:02]} 18. Bd4 {[%clk
00:18:03]} {[%emt 00:01:57]} Bxd4 {[%clk 01:06:42]} {[%emt 00:04:12]} 19. exd4
{[%clk 00:17:32]} {[%emt 00:01:01]} g5 {[%clk 01:04:58]} {[%emt 00:02:14]} 20.
Qg3 {[%clk 00:16:26]} {[%emt 00:19:27]} Nf4 {[%clk 01:04:08]} {[%emt 00:01:22]}
21. Rae1 {[%clk 00:10:36]} {[%emt 00:06:18]} Qd7 {[%clk 01:03:04]} {[%emt
00:01:35]} 22. Qf2 {[%clk 00:02:18]} {[%emt 00:08:48]} a6 {[%clk 01:02:26]}
{[%emt 00:01:09]} 23. Nc3 {[%emt 00:00:22]} b5 {[%clk 01:01:52]} {[%emt
00:01:02]} 24. Be2 {[%clk 00:02:54]} {[%emt 00:00:03]} Rae8 {[%clk 01:01:11]}
{[%emt 00:01:12]} 25. b4 {[%clk 00:02:44]} {[%emt 00:00:39]} Qg4 {[%clk
00:57:59]} {[%emt 00:03:42]} 26. Kh1 {[%clk 00:02:21]} {[%emt 00:00:54]} Nxd4
{[%clk 00:57:59]} {[%emt 00:00:29]} 27. Rg1 {[%clk 00:01:34]} {[%emt 00:01:17]}
Nfxe2 {[%clk 00:57:39]} {[%emt 00:00:50]} 28. Nxe2 {[%clk 00:01:26]} {[%emt
00:00:39]} Nxf3 {[%clk 00:57:53]} {[%emt 00:00:17]} 29. h3 {[%clk 00:01:24]}
{[%emt 00:00:31]} Qh4 {[%clk 00:57:27]} {[%emt 00:00:55]} 30. Qxh4 {[%clk
00:01:28]} {[%emt 00:00:26]} Nxh4 {[%clk 00:57:49]} {[%emt 00:00:08]} 31. Kh2
{[%clk 00:01:28]} {[%emt 00:00:30]} Bxg2 {[%clk 00:58:07]} {[%emt 00:00:12]} 32.
Rxg2 {[%clk 00:01:27]} {[%emt 00:00:32]} Nf3+ {[%clk 00:58:30]} {[%emt
00:00:07]} 33. Kg3 {[%clk 00:01:40]} {[%emt 00:00:16]} Nxe1 {[%clk 00:58:54]}
{[%emt 00:00:05]} 34. Rf2 {[%clk 00:01:43]} {[%emt 00:00:26]} Re3+ {[%clk
00:59:03]} {[%emt 00:00:22]} 35. Kg4 {[%clk 00:01:30]} {[%emt 00:00:42]} Kg7
{[%clk 00:59:06]} {[%emt 00:00:29]} 36. Ng3 {[%clk 00:01:19]} {[%emt 00:00:41]}
Kg6 {[%clk 00:58:47]} {[%emt 00:00:49]} 37. h4 {[%clk 00:00:51]} {[%emt
00:00:58]} h5+ {[%clk 00:58:34]} {[%emt 00:00:43]} 38. Kh3 {[%clk 00:00:48]}
{[%emt 00:00:32]} gxh4 {[%clk 00:58:45]} {[%emt 00:00:20]} 39. Kxh4 {[%clk
00:00:59]} {[%emt 00:00:20]} Nf3+ {[%clk 00:59:10]} {[%emt 00:00:04]} 40. Kh3
{[%clk 00:01:21]} {[%emt 00:00:09]} Ng5+ {[%clk 00:59:29]} {[%emt 00:00:10]} 41.
Kh4 {[%clk 00:01:24]} {[%emt 00:00:27]} Rxg3 {[%clk 00:59:34]} {[%emt
00:00:25]} 42. Kxg3 {[%clk 00:01:21]} {[%emt 00:00:33]} Ne4+ {[%clk 00:59:59]}
{[%emt 00:00:05]} 43. Kf3 {[%clk 00:01:41]} {[%emt 00:00:10]} Nxf2 {[%clk
01:00:25]} {[%emt 00:00:04]} 44. Kxf2 {[%clk 00:02:04]} {[%emt 00:00:07]} Rc8
{[%clk 01:00:50]} {[%emt 00:00:06]} 45. Kg3 {[%clk 00:02:23]} {[%emt 00:00:11]}
Kg5 {[%clk 01:01:13]} {[%emt 00:00:07]} 46. a4 {[%clk 00:02:40]} {[%emt
00:00:13]} bxa4 {[%clk 01:01:37]} {[%emt 00:00:06]} 47. b5 {[%clk 00:03:02]}
{[%emt 00:00:08]} axb5 {[%clk 01:02:01]} {[%emt 00:00:06]} 48. Kf3 {[%clk
00:03:24]} {[%emt 00:00:06]} a3 {[%clk 01:02:24]} {[%emt 00:00:08]} 49. Ke2
{[%clk 00:03:48]} {[%emt 00:00:06]} Rc3 {[%clk 01:02:43]} {[%emt 00:00:11]} 50.
Kd2 {[%clk 00:04:07]} {[%emt 00:00:12]} b4 {[%clk 01:03:09]} {[%emt 00:00:04]}
51. Ke2 {[%clk 00:04:25]} {[%emt 00:00:11]} a2 {[%clk 01:03:35]} {[%emt
00:00:05]} 52. Kd2 {[%clk 00:04:40]} {[%emt 00:00:15]} a1=Q {[%emt 00:00:11]}
53. Ke2 {[%clk 00:05:05]} {[%emt 00:00:04]} Qb2+ {[%clk 01:04:17]} {[%emt
00:00:07]} 54. Kd1 {[%clk 00:05:29]} {[%emt 00:00:06]} Rc1# {[%clk 01:04:09]}
{[%emt 00:00:08]} 0-1

[Event "NJSK 2022 Jeugd C"]
[Site "Almelo, Netherlands"]
[Date "2022.05.01"]
[Round "1.5"]
[White "Dekker, Thiemen"]
[Black "Mohebbinezhad, Parsa"]
[Result "0-1"]
[TimeControl "90min + 30sec/move"]
[WhiteElo "1935"]
[BlackElo "1600"]

1. e4 {[%clk 01:30:55]} {[%emt 00:00:04]} c6 {[%clk 01:30:46]} {[%emt
00:00:15]} 2. Nc3 {[%clk 01:31:20]} {[%emt 00:00:05]} d5 {[%clk 01:31:05]}
{[%emt 00:00:11]} 3. Nf3 {[%clk 01:31:44]} {[%emt 00:00:06]} d4 {[%clk
01:31:19]} {[%emt 00:00:16]} 4. Ne2 {[%clk 01:32:04]} {[%emt 00:00:10]} c5
{[%clk 01:31:43]} {[%emt 00:00:06]} 5. c3 {[%clk 01:31:30]} {[%emt 00:01:04]}
Bg4 {[%clk 01:30:39]} {[%emt 00:01:33]} 6. cxd4 {[%clk 01:26:02]} {[%emt
00:05:58]} Bxf3 {[%clk 01:30:28]} {[%emt 00:00:26]} 7. gxf3 {[%clk 01:26:30]}
{[%emt 00:00:17]} cxd4 {[%clk 01:30:43]} {[%emt 00:00:15]} 8. Qb3 {[%clk
01:24:57]} {[%emt 00:02:04]} b6 {[%clk 01:28:44]} {[%emt 00:02:30]} 9. Qa4+
{[%clk 01:24:12]} {[%emt 00:01:14]} Nd7 {[%clk 01:28:50]} {[%emt 00:00:24]} 10.
Nxd4 {[%clk 01:23:00]} {[%emt 00:01:42]} e6 {[%clk 01:28:15]} {[%emt 00:01:04]}
11. Bb5 {[%clk 01:21:45]} {[%emt 00:01:46]} Bc5 {[%clk 01:21:57]} {[%emt
00:06:48]} 12. Bxd7+ {[%clk 01:20:07]} {[%emt 00:02:08]} Qxd7 {[%clk 01:22:19]}
{[%emt 00:00:08]} 13. Qxd7+ {[%clk 01:20:32]} {[%emt 00:00:05]} Kxd7 {[%clk
01:22:42]} {[%emt 00:00:06]} 14. Nb3 {[%clk 01:20:20]} {[%emt 00:00:43]} Bd6
{[%clk 01:21:58]} {[%emt 00:00:57]} 15. d4 {[%clk 01:19:41]} {[%emt 00:01:26]}
Ne7 {[%clk 01:20:51]} {[%emt 00:01:37]} 16. Bd2 {[%clk 01:18:26]} {[%emt
00:01:44]} Nc6 {[%clk 01:17:17]} {[%emt 00:04:04]} 17. a3 {[%clk 01:16:44]}
{[%emt 00:02:13]} Rac8 {[%clk 01:15:31]} {[%emt 00:02:16]} 18. Bc3 {[%clk
01:15:33]} {[%emt 00:01:40]} Rhf8 {[%clk 01:11:30]} {[%emt 00:04:31]} 19. Ke2
{[%clk 01:13:16]} {[%emt 00:02:47]} f5 {[%clk 01:06:18]} {[%emt 00:05:43]} 20.
Nd2 {[%clk 01:07:35]} {[%emt 00:06:10]} Ke7 {[%clk 01:04:11]} {[%emt 00:02:37]}
21. h4 {[%emt 00:06:07]} Rcd8 {[%clk 01:01:18]} {[%emt 00:03:10]} 22. Rac1
{[%clk 01:00:27]} {[%emt 00:02:14]} Bf4 {[%clk 00:59:57]} {[%emt 00:01:51]} 23.
d5 {[%clk 00:45:58]} {[%emt 00:14:59]} exd5 {[%clk 00:57:13]} {[%emt 00:03:14]}
24. Bxg7 {[%clk 00:42:40]} {[%emt 00:03:48]} Rf7 {[%clk 00:57:28]} {[%emt
00:00:15]} 25. Rxc6 {[%clk 00:41:14]} {[%emt 00:01:57]} Rxg7 {[%clk 00:57:20]}
{[%emt 00:00:37]} 26. exf5 {[%clk 00:39:32]} {[%emt 00:02:13]} Rf8 {[%clk
00:54:56]} {[%emt 00:02:54]} 27. Re1 {[%clk 00:27:18]} {[%emt 00:30:39]} Rxf5
{[%clk 00:54:06]} {[%emt 00:01:21]} 28. Kd3+ {[%clk 00:25:36]} {[%emt
00:02:12]} Kd7 {[%clk 00:53:31]} {[%emt 00:01:04]} 29. Rce6 {[%clk 00:19:18]}
{[%emt 00:06:48]} Bxd2 {[%clk 00:52:46]} {[%emt 00:01:16]} 30. Kxd2 {[%clk
00:19:43]} {[%emt 00:00:05]} Rxf3 {[%clk 00:53:00]} {[%emt 00:00:16]} 31. R6e2
{[%clk 00:19:02]} {[%emt 00:01:11]} Rgf7 {[%clk 00:52:32]} {[%emt 00:00:58]} 32.
Rf1 {[%clk 00:19:01]} {[%emt 00:00:31]} d4 {[%clk 00:46:41]} {[%emt 00:06:21]}
33. Ke1 {[%clk 00:15:53]} {[%emt 00:03:37]} d3 {[%clk 00:42:55]} {[%emt
00:04:17]} 34. Re3 {[%clk 00:15:38]} {[%emt 00:00:45]} Rxe3+ {[%clk 00:42:58]}
{[%emt 00:00:26]} 35. fxe3 {[%clk 00:16:02]} {[%emt 00:00:07]} d2+ {[%emt
00:00:28]} 0-1

[Event "NJSK 2022 Jeugd C"]
[Site "Almelo, Netherlands"]
[Date "2022.05.01"]
[Round "1.6"]
[White "Terlouw, Wouter"]
[Black "Arnold, Rhys"]
[Result "0-1"]
[TimeControl "90min + 30sec/move"]
[WhiteElo "1578"]
[BlackElo "1846"]

1. d4 d5 2. c4 c6 3. Nc3 Nf6 4. Nf3 e6 5. Bg5 Nbd7 6. e3 Bb4 7. Qc2 Qa5 8. Bxf6
Nxf6 9. Nd2 dxc4 10. Nxc4 Qc7 11. Bd3 O-O 12. a3 Be7 13. b4 h6 14. h3 Nd5 15.
O-O Bf6 16. Ne4 Rd8 17. Rac1 Qe7 18. Rcd1 Nb6 19. Nxf6+ Qxf6 20. Ne5 Bd7 21.
Qb3 a6 22. a4 Nd5 23. b5 cxb5 24. axb5 a5 25. Ra1 Qe7 26. Be4 Be8 27. Nc4 Qb4
28. Qxb4 axb4 29. Rxa8 Rxa8 30. Bxd5 exd5 31. Nb6 Ra3 32. Nxd5 b3 33. Rb1 Bxb5
34. Nb4 Bc4 35. d5 Ra4 36. d6 Kf8 37. Nd3 Bxd3 38. Rxb3 Ba6 39. Rb2 Ke8 40. Rc2
Rc4 0-1